[Event "January 9 Late 2024"]
[Site "https://www.chess.com"]
[Date "2024.01.09"]
[Round "9"]
[White "Stachanczyk, Jacek"]
[Black "Tqebuchava, Zurab"]
[Result "0-1"]
[Board "123"]
[TimeControl "180+1"]
[WhiteFideId "1116657"]
[BlackFideId "13601113"]
[WhiteElo "2398"]
[BlackElo "2189"]
[WhiteTeam "POL"]
[BlackTeam "GEO"]
[WhiteClock "0:00:53"]
[BlackClock "0:00:27"]

1. e4 {[%clk 0:02:58]}  e5 {[%clk 0:03:00]} 2. Nf3 {[%clk 0:02:58]}  Nc6 {[%clk 0:02:59]} 3. Bb5 {[%clk 0:02:57]}  Be7 {[%clk 0:02:59]} 4. O-O {[%clk 0:02:53]}  d6 {[%clk 0:02:55]} 5. d4 {[%clk 0:02:52]}  exd4 {[%clk 0:02:50]} 6. Nxd4 {[%clk 0:02:53]}  Bd7 {[%clk 0:02:50]} 7. Nc3 {[%clk 0:02:49]}  Nf6 {[%clk 0:02:48]} 8. Re1 {[%clk 0:02:44]}  O-O {[%clk 0:02:46]} 9. Bxc6 {[%clk 0:02:40]}  bxc6 {[%clk 0:02:37]} 10. Qf3 {[%clk 0:02:28]}  c5 {[%clk 0:02:33]} 11. Nf5 {[%clk 0:02:27]}  Bxf5 {[%clk 0:02:30]} 12. Qxf5 {[%clk 0:02:27]}  Qc8 {[%clk 0:02:20]} 13. Qxc8 {[%clk 0:02:24]}  Rfxc8 {[%clk 0:02:14]} 14. Bf4 {[%clk 0:02:17]}  Rab8 {[%clk 0:02:09]} 15. b3 {[%clk 0:02:17]}  Bf8 {[%clk 0:02:03]} 16. e5 {[%clk 0:02:13]}  dxe5 {[%clk 0:01:51]} 17. Bxe5 {[%clk 0:02:12]}  Bd6 {[%clk 0:01:46]} 18. Bxf6 {[%clk 0:02:11]}  gxf6 {[%clk 0:01:45]} 19. Nd5 {[%clk 0:02:05]}  Kg7 {[%clk 0:01:42]} 20. c4 {[%clk 0:02:02]}  Re8 {[%clk 0:01:39]} 21. Rad1 {[%clk 0:01:56]}  Re5 {[%clk 0:01:28]} 22. Rxe5 {[%clk 0:01:36]}  fxe5 {[%clk 0:01:25]} 23. g3 {[%clk 0:01:31]}  f5 {[%clk 0:01:21]} 24. f3 {[%clk 0:01:28]}  Re8 {[%clk 0:01:13]} 25. Kf2 {[%clk 0:01:28]}  Kg6 {[%clk 0:01:09]} 26. f4 {[%clk 0:01:24]}  e4 {[%clk 0:01:06]} 27. Ke3 {[%clk 0:01:24]}  h5 {[%clk 0:01:05]} 28. Nc3 {[%clk 0:01:23]}  a6 {[%clk 0:01:00]} 29. Rd5 {[%clk 0:01:19]}  h4 {[%clk 0:00:54]} 30. Na4 {[%clk 0:01:18]}  hxg3 {[%clk 0:00:53]} 31. hxg3 {[%clk 0:01:19]}  Rh8 {[%clk 0:00:48]} 32. Nxc5 {[%clk 0:01:19]}  Rh3 {[%clk 0:00:41]} 33. Kf2 {[%clk 0:01:14]}  Rh2+ {[%clk 0:00:39]} 34. Kg1 {[%clk 0:01:13]}  Rxa2 {[%clk 0:00:38]} 35. Nb7 {[%clk 0:01:13]}  Bb4 {[%clk 0:00:29]} 36. Rd7 {[%clk 0:00:53]}  e3 {[%clk 0:00:27]} 0-1

[Event "January 9 Late 2024"]
[Site "https://www.chess.com"]
[Date "2024.01.09"]
[Round "9"]
[White "Jing, Andrew"]
[Black "Poddubnyi, Viktor"]
[Result "1-0"]
[Board "124"]
[TimeControl "180+1"]
[WhiteFideId "30984076"]
[BlackFideId "4141989"]
[WhiteElo "2177"]
[BlackElo "2394"]
[WhiteTeam "USA"]
[BlackTeam "RUS"]
[WhiteClock "0:01:48"]
[BlackClock "0:00:00"]

1. d4 {[%clk 0:03:00]}  g6 {[%clk 0:03:00]} 2. e4 {[%clk 0:03:00]}  Bg7 {[%clk 0:03:00]} 3. f4 {[%clk 0:03:00]}  d6 {[%clk 0:02:59]} 4. Nf3 {[%clk 0:03:00]}  Nf6 {[%clk 0:02:59]} 5. Bd3 {[%clk 0:03:01]}  c5 {[%clk 0:02:54]} 6. c3 {[%clk 0:03:01]}  cxd4 {[%clk 0:02:52]} 7. cxd4 {[%clk 0:03:00]}  O-O {[%clk 0:02:47]} 8. Nc3 {[%clk 0:02:59]}  Nc6 {[%clk 0:02:47]} 9. d5 {[%clk 0:02:55]}  Nb4 {[%clk 0:02:46]} 10. Bb1 {[%clk 0:02:55]}  e6 {[%clk 0:02:31]} 11. dxe6 {[%clk 0:02:54]}  Bxe6 {[%clk 0:02:30]} 12. O-O {[%clk 0:02:55]}  Qb6+ {[%clk 0:02:02]} 13. Kh1 {[%clk 0:02:54]}  Rac8 {[%clk 0:02:02]} 14. a3 {[%clk 0:02:53]}  Nc6 {[%clk 0:02:00]} 15. b4 {[%clk 0:02:48]}  a5 {[%clk 0:01:31]} 16. Na4 {[%clk 0:02:47]}  Qb5 {[%clk 0:01:07]} 17. Bd3 {[%clk 0:02:45]}  Qh5 {[%clk 0:01:07]} 18. b5 {[%clk 0:02:42]}  Ng4 {[%clk 0:00:54]} 19. Rb1 {[%clk 0:02:26]}  Nd4 {[%clk 0:00:52]} 20. h3 {[%clk 0:02:25]}  Ba2 {[%clk 0:00:23]} 21. Rb2 {[%clk 0:02:19]}  Be6 {[%clk 0:00:17]} 22. Rb1 {[%clk 0:01:57]}  Rfe8 {[%clk 0:00:14]} 23. Nxd4 {[%clk 0:01:51]}  Bxd4 {[%clk 0:00:13]} 24. Be2 {[%clk 0:01:52]}  f5 {[%clk 0:00:06]} 25. Qxd4 {[%clk 0:01:50]}  Qh4 {[%clk 0:00:00]} 26. Bb2 {[%clk 0:01:48]} 1-0

[Event "January 9 Late 2024"]
[Site "https://www.chess.com"]
[Date "2024.01.09"]
[Round "9"]
[White "Gerbelli Neto, Eduardo"]
[Black "Harrington, Steve"]
[Result "1-0"]
[Board "126"]
[TimeControl "180+1"]
[WhiteFideId "2103281"]
[BlackFideId "2038730"]
[WhiteElo "2366"]
[BlackElo "2158"]
[WhiteTeam "BRA"]
[BlackTeam "USA"]
[WhiteClock "0:00:35"]
[BlackClock "0:00:00"]

1. e4 {[%clk 0:03:00]}  c5 {[%clk 0:02:58]} 2. Nc3 {[%clk 0:02:58]}  d6 {[%clk 0:02:57]} 3. f4 {[%clk 0:02:58]}  g6 {[%clk 0:02:57]} 4. Nf3 {[%clk 0:02:59]}  Bg7 {[%clk 0:02:58]} 5. Bb5+ {[%clk 0:02:59]}  Bd7 {[%clk 0:02:57]} 6. Bc4 {[%clk 0:03:00]}  Nf6 {[%clk 0:02:53]} 7. O-O {[%clk 0:03:00]}  Bg4 {[%clk 0:02:51]} 8. e5 {[%clk 0:02:50]}  Bxf3 {[%clk 0:02:22]} 9. Qxf3 {[%clk 0:02:48]}  dxe5 {[%clk 0:02:05]} 10. Bb5+ {[%clk 0:02:34]}  Nbd7 {[%clk 0:01:22]} 11. fxe5 {[%clk 0:02:28]}  O-O {[%clk 0:01:21]} 12. exf6 {[%clk 0:02:27]}  Nxf6 {[%clk 0:01:21]} 13. d3 {[%clk 0:02:22]}  a6 {[%clk 0:01:15]} 14. Bc4 {[%clk 0:02:19]}  b5 {[%clk 0:01:14]} 15. Bd5 {[%clk 0:02:08]}  Ra7 {[%clk 0:01:01]} 16. Be4 {[%clk 0:02:06]}  Nd7 {[%clk 0:00:38]} 17. Be3 {[%clk 0:01:55]}  Ne5 {[%clk 0:00:35]} 18. Qg3 {[%clk 0:01:53]}  Qc8 {[%clk 0:00:30]} 19. h3 {[%clk 0:01:35]}  e6 {[%clk 0:00:26]} 20. Qf2 {[%clk 0:01:29]}  f5 {[%clk 0:00:25]} 21. Bf3 {[%clk 0:01:23]}  c4 {[%clk 0:00:21]} 22. Bxa7 {[%clk 0:01:21]}  cxd3 {[%clk 0:00:21]} 23. cxd3 {[%clk 0:01:03]}  Qd7 {[%clk 0:00:18]} 24. Rad1 {[%clk 0:00:57]}  Rd8 {[%clk 0:00:11]} 25. Bb6 {[%clk 0:00:48]}  Rb8 {[%clk 0:00:10]} 26. Bc5 {[%clk 0:00:44]}  Nc6 {[%clk 0:00:09]} 27. Bxc6 {[%clk 0:00:43]}  Qxc6 {[%clk 0:00:09]} 28. d4 {[%clk 0:00:44]}  b4 {[%clk 0:00:09]} 29. Ne2 {[%clk 0:00:42]}  Rd8 {[%clk 0:00:09]} 30. Nf4 {[%clk 0:00:42]}  e5 {[%clk 0:00:09]} 31. dxe5 {[%clk 0:00:41]}  Rxd1 {[%clk 0:00:09]} 32. Rxd1 {[%clk 0:00:41]}  Bxe5 {[%clk 0:00:09]} 33. Nd3 {[%clk 0:00:40]}  Bc7 {[%clk 0:00:07]} 34. Qd4 {[%clk 0:00:36]}  a5 {[%clk 0:00:00]} 35. Ne5 {[%clk 0:00:35]} 1-0

[Event "January 9 Late 2024"]
[Site "https://www.chess.com"]
[Date "2024.01.09"]
[Round "9"]
[White "Sanchez Alvares, Kelvin Antonio"]
[Black "Ghosh, Chanchal Kumer"]
[Result "0-1"]
[Board "127"]
[TimeControl "180+1"]
[WhiteFideId "3906680"]
[BlackFideId "10201858"]
[WhiteElo "2347"]
[BlackElo "2133"]
[WhiteTeam "VEN"]
[BlackTeam "BAN"]
[WhiteClock "0:00:10"]
[BlackClock "0:00:29"]

1. e4 {[%clk 0:03:00]}  c5 {[%clk 0:02:58]} 2. Nf3 {[%clk 0:02:59]}  d6 {[%clk 0:02:58]} 3. d4 {[%clk 0:02:59]}  cxd4 {[%clk 0:02:59]} 4. Nxd4 {[%clk 0:02:59]}  Nf6 {[%clk 0:03:00]} 5. Nc3 {[%clk 0:02:59]}  a6 {[%clk 0:03:01]} 6. Be3 {[%clk 0:02:56]}  e5 {[%clk 0:03:00]} 7. Nb3 {[%clk 0:02:56]}  Be6 {[%clk 0:03:01]} 8. Qd2 {[%clk 0:02:54]}  Be7 {[%clk 0:03:01]} 9. f4 {[%clk 0:02:43]}  Qc7 {[%clk 0:02:57]} 10. O-O-O {[%clk 0:02:41]}  Nbd7 {[%clk 0:02:55]} 11. Kb1 {[%clk 0:02:35]}  O-O {[%clk 0:02:46]} 12. f5 {[%clk 0:02:33]}  Bc4 {[%clk 0:02:45]} 13. g4 {[%clk 0:02:30]}  Nxg4 {[%clk 0:02:03]} 14. Rg1 {[%clk 0:02:28]}  Nxe3 {[%clk 0:01:51]} 15. Qxe3 {[%clk 0:02:27]}  Nf6 {[%clk 0:01:51]} 16. Qh6 {[%clk 0:01:55]}  g6 {[%clk 0:01:40]} 17. h4 {[%clk 0:01:37]}  Rfc8 {[%clk 0:01:32]} 18. h5 {[%clk 0:01:32]}  Bf8 {[%clk 0:01:24]} 19. Qg5 {[%clk 0:01:29]}  Bxb3 {[%clk 0:00:58]} 20. axb3 {[%clk 0:00:54]}  Nxe4 {[%clk 0:00:55]} 21. Qe3 {[%clk 0:00:18]}  Nxc3+ {[%clk 0:00:47]} 22. bxc3 {[%clk 0:00:19]}  Qxc3 {[%clk 0:00:47]} 23. Qg5 {[%clk 0:00:17]}  Qxc2+ {[%clk 0:00:46]} 24. Ka1 {[%clk 0:00:16]}  Qxd1+ {[%clk 0:00:47]} 25. Ka2 {[%clk 0:00:16]}  Rc2+ {[%clk 0:00:45]} 26. Ka3 {[%clk 0:00:16]}  d5+ {[%clk 0:00:42]} 27. b4 {[%clk 0:00:15]}  Qa1+ {[%clk 0:00:34]} 28. Kb3 {[%clk 0:00:15]}  Qb1+ {[%clk 0:00:31]} 29. Ka4 {[%clk 0:00:10]}  Ra2# {[%clk 0:00:29]} 0-1

[Event "January 9 Late 2024"]
[Site "https://www.chess.com"]
[Date "2024.01.09"]
[Round "9"]
[White "D`Arruda, Ricardo D."]
[Black "Romero Ruscalleda, Josep"]
[Result "1-0"]
[Board "130"]
[TimeControl "180+1"]
[WhiteFideId "100692"]
[BlackFideId "2231859"]
[WhiteElo "2447"]
[BlackElo "2262"]
[WhiteTeam "ARG"]
[BlackTeam "ESP"]
[WhiteClock "0:00:09"]
[BlackClock "0:00:00"]

1. Nf3 {[%clk 0:02:42]}  g6 {[%clk 0:03:00]} 2. d4 {[%clk 0:02:42]}  Bg7 {[%clk 0:03:01]} 3. e4 {[%clk 0:02:40]}  d6 {[%clk 0:03:02]} 4. Nc3 {[%clk 0:02:39]}  a6 {[%clk 0:03:01]} 5. Bg5 {[%clk 0:02:39]}  b5 {[%clk 0:03:00]} 6. Qd2 {[%clk 0:02:38]}  Bb7 {[%clk 0:03:00]} 7. O-O-O {[%clk 0:02:38]}  Nf6 {[%clk 0:02:51]} 8. Qe1 {[%clk 0:02:35]}  b4 {[%clk 0:02:48]} 9. e5 {[%clk 0:02:29]}  Nfd7 {[%clk 0:02:27]} 10. Na4 {[%clk 0:02:15]}  Bxf3 {[%clk 0:02:00]} 11. gxf3 {[%clk 0:02:16]}  O-O {[%clk 0:01:59]} 12. exd6 {[%clk 0:02:12]}  Re8 {[%clk 0:01:48]} 13. dxe7 {[%clk 0:02:10]}  Qc8 {[%clk 0:01:48]} 14. Qxb4 {[%clk 0:02:03]}  Nc6 {[%clk 0:01:42]} 15. Qc3 {[%clk 0:02:00]}  Nxe7 {[%clk 0:01:40]} 16. Bh3 {[%clk 0:01:50]}  f5 {[%clk 0:01:23]} 17. Rhe1 {[%clk 0:01:47]}  Nd5 {[%clk 0:01:17]} 18. Qc6 {[%clk 0:01:42]}  N7b6 {[%clk 0:01:13]} 19. Rxe8+ {[%clk 0:01:28]}  Qxe8 {[%clk 0:01:10]} 20. Qxe8+ {[%clk 0:01:28]}  Rxe8 {[%clk 0:01:10]} 21. Nxb6 {[%clk 0:01:27]}  cxb6 {[%clk 0:01:07]} 22. Bf1 {[%clk 0:01:27]}  b5 {[%clk 0:01:06]} 23. Kb1 {[%clk 0:01:13]}  h6 {[%clk 0:01:02]} 24. Bc1 {[%clk 0:01:09]}  Kh7 {[%clk 0:00:54]} 25. c4 {[%clk 0:01:06]}  bxc4 {[%clk 0:00:33]} 26. Bxc4 {[%clk 0:01:07]}  Nc7 {[%clk 0:00:30]} 27. d5 {[%clk 0:00:48]}  Rd8 {[%clk 0:00:23]} 28. d6 {[%clk 0:00:44]}  Nb5 {[%clk 0:00:21]} 29. Bxb5 {[%clk 0:00:22]}  axb5 {[%clk 0:00:21]} 30. Be3 {[%clk 0:00:21]}  Be5 {[%clk 0:00:19]} 31. d7 {[%clk 0:00:19]}  Bc7 {[%clk 0:00:19]} 32. f4 {[%clk 0:00:20]}  Kg7 {[%clk 0:00:18]} 33. Rd5 {[%clk 0:00:16]}  Kf7 {[%clk 0:00:17]} 34. Rxb5 {[%clk 0:00:14]}  Rxd7 {[%clk 0:00:17]} 35. Rb7 {[%clk 0:00:12]}  Ke6 {[%clk 0:00:16]} 36. a4 {[%clk 0:00:12]}  g5 {[%clk 0:00:15]} 37. fxg5 {[%clk 0:00:12]}  f4 {[%clk 0:00:16]} 38. Bb6 {[%clk 0:00:10]}  Bxb6 {[%clk 0:00:14]} 39. Rxb6+ {[%clk 0:00:10]}  Kf5 {[%clk 0:00:13]} 40. Rxh6 {[%clk 0:00:11]}  Kxg5 {[%clk 0:00:12]} 41. Rb6 {[%clk 0:00:10]}  Rd2 {[%clk 0:00:11]} 42. a5 {[%clk 0:00:10]}  Rxf2 {[%clk 0:00:11]} 43. a6 {[%clk 0:00:11]}  Rf1+ {[%clk 0:00:07]} 44. Ka2 {[%clk 0:00:10]}  Rc1 {[%clk 0:00:03]} 45. a7 {[%clk 0:00:10]}  f3 {[%clk 0:00:01]} 46. a8=Q {[%clk 0:00:09]}  f2 {[%clk 0:00:00]} 47. Qg2+ {[%clk 0:00:09]} 1-0

[Event "January 9 Late 2024"]
[Site "https://www.chess.com"]
[Date "2024.01.10"]
[Round "9"]
[White "Gonzalez Vega, Alejandro"]
[Black "Goncalves, Samuel Jesus P"]
[Result "0-1"]
[Board "132"]
[TimeControl "180+1"]
[WhiteFideId "3510042"]
[BlackFideId "1945130"]
[WhiteElo "2231"]
[BlackElo "2391"]
[WhiteTeam "CUB"]
[BlackTeam "POR"]
[WhiteClock "0:00:19"]
[BlackClock "0:00:18"]

1. e4 {[%clk 0:03:00]}  d5 {[%clk 0:02:59]} 2. exd5 {[%clk 0:03:00]}  Qxd5 {[%clk 0:03:00]} 3. Nc3 {[%clk 0:03:00]}  Qa5 {[%clk 0:03:01]} 4. b4 {[%clk 0:03:00]}  Qxb4 {[%clk 0:03:00]} 5. Rb1 {[%clk 0:03:01]}  Qd6 {[%clk 0:03:01]} 6. Rb3 {[%clk 0:03:01]}  Nf6 {[%clk 0:02:57]} 7. Nf3 {[%clk 0:03:00]}  e6 {[%clk 0:02:51]} 8. Ba3 {[%clk 0:02:59]}  Qd8 {[%clk 0:02:47]} 9. Bxf8 {[%clk 0:02:58]}  Kxf8 {[%clk 0:02:47]} 10. d4 {[%clk 0:02:58]}  g6 {[%clk 0:02:42]} 11. Bd3 {[%clk 0:02:54]}  Kg7 {[%clk 0:02:42]} 12. O-O {[%clk 0:02:54]}  Nbd7 {[%clk 0:02:34]} 13. Qe2 {[%clk 0:02:50]}  b6 {[%clk 0:02:28]} 14. Rd1 {[%clk 0:02:48]}  Bb7 {[%clk 0:02:26]} 15. Ne5 {[%clk 0:02:47]}  Qe7 {[%clk 0:02:09]} 16. Ba6 {[%clk 0:02:11]}  Bxa6 {[%clk 0:01:53]} 17. Qxa6 {[%clk 0:02:10]}  Nxe5 {[%clk 0:01:48]} 18. dxe5 {[%clk 0:02:10]}  Nd7 {[%clk 0:01:48]} 19. Qe2 {[%clk 0:02:05]}  Nc5 {[%clk 0:01:46]} 20. Rb4 {[%clk 0:01:55]}  a5 {[%clk 0:01:38]} 21. Rf4 {[%clk 0:01:52]}  Rad8 {[%clk 0:01:30]} 22. Re1 {[%clk 0:01:52]}  Rd7 {[%clk 0:01:23]} 23. h4 {[%clk 0:01:50]}  h5 {[%clk 0:01:21]} 24. Qf3 {[%clk 0:01:46]}  Rd2 {[%clk 0:01:05]} 25. Re2 {[%clk 0:01:22]}  Rxe2 {[%clk 0:00:56]} 26. Qxe2 {[%clk 0:01:21]}  Rd8 {[%clk 0:00:40]} 27. Qe3 {[%clk 0:01:02]}  Qd7 {[%clk 0:00:20]} 28. Qf3 {[%clk 0:00:58]}  Qe7 {[%clk 0:00:20]} 29. g3 {[%clk 0:00:55]}  Rd7 {[%clk 0:00:21]} 30. Rf6 {[%clk 0:00:54]}  Rd8 {[%clk 0:00:19]} 31. Qf4 {[%clk 0:00:53]}  Nd7 {[%clk 0:00:18]} 32. Ne4 {[%clk 0:00:51]}  Rh8 {[%clk 0:00:16]} 33. Qg5 {[%clk 0:00:45]}  Kf8 {[%clk 0:00:13]} 34. Kg2 {[%clk 0:00:30]}  Nxf6 {[%clk 0:00:12]} 35. exf6 {[%clk 0:00:30]}  Qd7 {[%clk 0:00:12]} 36. Qe5 {[%clk 0:00:30]}  Kg8 {[%clk 0:00:12]} 37. Ng5 {[%clk 0:00:30]}  Qd5+ {[%clk 0:00:12]} 38. Qxd5 {[%clk 0:00:30]}  exd5 {[%clk 0:00:13]} 39. Kf3 {[%clk 0:00:30]}  Kf8 {[%clk 0:00:12]} 40. Kf4 {[%clk 0:00:30]}  Ke8 {[%clk 0:00:11]} 41. Ke5 {[%clk 0:00:31]}  Kd7 {[%clk 0:00:12]} 42. Kxd5 {[%clk 0:00:30]}  Re8 {[%clk 0:00:11]} 43. Nxf7 {[%clk 0:00:28]}  Re2 {[%clk 0:00:12]} 44. Ne5+ {[%clk 0:00:28]}  Ke8 {[%clk 0:00:13]} 45. Nxg6 {[%clk 0:00:26]}  Kf7 {[%clk 0:00:11]} 46. Nf4 {[%clk 0:00:26]}  Rxc2 {[%clk 0:00:10]} 47. f3 {[%clk 0:00:23]}  b5 {[%clk 0:00:10]} 48. g4 {[%clk 0:00:21]}  b4 {[%clk 0:00:10]} 49. g5 {[%clk 0:00:19]}  a4 {[%clk 0:00:10]} 50. g6+ {[%clk 0:00:19]}  Kxf6 {[%clk 0:00:11]} 51. g7 {[%clk 0:00:17]}  Kxg7 {[%clk 0:00:11]} 52. Nxh5+ {[%clk 0:00:17]}  Kh6 {[%clk 0:00:11]} 53. Nf4 {[%clk 0:00:17]}  b3 {[%clk 0:00:12]} 54. axb3 {[%clk 0:00:17]}  axb3 {[%clk 0:00:13]} 55. Nd3 {[%clk 0:00:17]}  b2 {[%clk 0:00:13]} 56. Nxb2 {[%clk 0:00:17]}  Rxb2 {[%clk 0:00:14]} 57. f4 {[%clk 0:00:17]}  Rf2 {[%clk 0:00:14]} 58. f5 {[%clk 0:00:17]}  Kh5 {[%clk 0:00:15]} 59. Ke6 {[%clk 0:00:18]}  Kxh4 {[%clk 0:00:15]} 60. f6 {[%clk 0:00:18]}  c5 {[%clk 0:00:16]} 61. Kd5 {[%clk 0:00:19]}  Rxf6 {[%clk 0:00:16]} 62. Kxc5 {[%clk 0:00:19]}  Kg5 {[%clk 0:00:17]} 63. Kd5 {[%clk 0:00:19]}  Kf5 {[%clk 0:00:18]} 64. Kd4 {[%clk 0:00:20]}  Re6 {[%clk 0:00:18]} 65. Kd5 {[%clk 0:00:20]}  Re5+ {[%clk 0:00:17]} 66. Kd4 {[%clk 0:00:21]}  Kf4 {[%clk 0:00:17]} 67. Kd3 {[%clk 0:00:21]}  Re4 {[%clk 0:00:18]} 68. Kd2 {[%clk 0:00:19]}  Re3 {[%clk 0:00:18]} 0-1

[Event "January 9 Late 2024"]
[Site "https://www.chess.com"]
[Date "2024.01.09"]
[Round "9"]
[White "Bueno, Alfeu Junior Varela"]
[Black "Petersson, Kjell"]
[Result "1-0"]
[Board "134"]
[TimeControl "180+1"]
[WhiteFideId "2108879"]
[BlackFideId "1705148"]
[WhiteElo "2376"]
[BlackElo "2153"]
[WhiteTeam "BRA"]
[BlackTeam "SWE"]
[WhiteClock "0:01:38"]
[BlackClock "0:00:15"]

1. e4 {[%clk 0:03:00]}  c5 {[%clk 0:03:00]} 2. Nc3 {[%clk 0:03:01]}  g6 {[%clk 0:02:57]} 3. f4 {[%clk 0:03:01]}  Bg7 {[%clk 0:02:57]} 4. Nf3 {[%clk 0:03:02]}  Nc6 {[%clk 0:02:56]} 5. Bb5 {[%clk 0:03:03]}  e6 {[%clk 0:02:54]} 6. Bxc6 {[%clk 0:03:02]}  bxc6 {[%clk 0:02:54]} 7. d3 {[%clk 0:03:03]}  d6 {[%clk 0:02:51]} 8. O-O {[%clk 0:03:03]}  Ne7 {[%clk 0:02:51]} 9. e5 {[%clk 0:03:03]}  d5 {[%clk 0:02:47]} 10. Na4 {[%clk 0:03:03]}  Qa5 {[%clk 0:02:44]} 11. c4 {[%clk 0:03:03]}  O-O {[%clk 0:02:11]} 12. b3 {[%clk 0:03:01]}  Nf5 {[%clk 0:01:59]} 13. Qe1 {[%clk 0:02:48]}  Qb4 {[%clk 0:01:51]} 14. g4 {[%clk 0:02:21]}  Nd4 {[%clk 0:01:44]} 15. Nxd4 {[%clk 0:02:19]}  Qxe1 {[%clk 0:01:43]} 16. Rxe1 {[%clk 0:02:20]}  cxd4 {[%clk 0:01:43]} 17. Bb2 {[%clk 0:02:16]}  f6 {[%clk 0:01:21]} 18. Bxd4 {[%clk 0:02:15]}  fxe5 {[%clk 0:01:19]} 19. Bxe5 {[%clk 0:02:16]}  Bxe5 {[%clk 0:01:18]} 20. fxe5 {[%clk 0:02:17]}  Rf3 {[%clk 0:01:12]} 21. Nc5 {[%clk 0:02:15]}  Rf4 {[%clk 0:01:04]} 22. h3 {[%clk 0:02:14]}  a5 {[%clk 0:01:01]} 23. Rf1 {[%clk 0:02:10]}  Rxf1+ {[%clk 0:00:58]} 24. Rxf1 {[%clk 0:02:11]}  a4 {[%clk 0:00:51]} 25. Nxa4 {[%clk 0:02:03]}  dxc4 {[%clk 0:00:50]} 26. dxc4 {[%clk 0:02:01]}  Ra5 {[%clk 0:00:47]} 27. Rd1 {[%clk 0:01:44]}  Ba6 {[%clk 0:00:45]} 28. Rd8+ {[%clk 0:01:43]}  Kf7 {[%clk 0:00:45]} 29. Ra8 {[%clk 0:01:44]}  Ke7 {[%clk 0:00:23]} 30. Kf2 {[%clk 0:01:37]}  Kd7 {[%clk 0:00:15]} 31. Rxa6 {[%clk 0:01:38]} 1-0

[Event "January 9 Late 2024"]
[Site "https://www.chess.com"]
[Date "2024.01.10"]
[Round "9"]
[White "Varela La Madrid, Maria"]
[Black "Jazdanovs, Aleksandrs"]
[Result "0-1"]
[Board "135"]
[TimeControl "180+1"]
[WhiteFideId "3903346"]
[BlackFideId "11604492"]
[WhiteElo "2194"]
[BlackElo "2327"]
[WhiteTeam "VEN"]
[BlackTeam "LAT"]
[WhiteClock "0:00:00"]
[BlackClock "0:01:16"]

1. d4 {[%clk 0:03:00]}  Nf6 {[%clk 0:02:50]} 2. c4 {[%clk 0:03:00]}  c5 {[%clk 0:02:49]} 3. d5 {[%clk 0:03:00]}  b5 {[%clk 0:02:44]} 4. cxb5 {[%clk 0:03:01]}  a6 {[%clk 0:02:44]} 5. e3 {[%clk 0:03:01]}  axb5 {[%clk 0:02:44]} 6. Bxb5 {[%clk 0:03:02]}  Ba6 {[%clk 0:02:40]} 7. Bxa6 {[%clk 0:02:48]}  Qa5+ {[%clk 0:02:39]} 8. Nc3 {[%clk 0:02:42]}  Qxa6 {[%clk 0:02:39]} 9. e4 {[%clk 0:02:29]}  d6 {[%clk 0:02:38]} 10. f4 {[%clk 0:01:47]}  Nbd7 {[%clk 0:02:35]} 11. Nf3 {[%clk 0:01:45]}  g6 {[%clk 0:02:10]} 12. e5 {[%clk 0:01:36]}  Ng4 {[%clk 0:02:06]} 13. Ng5 {[%clk 0:01:02]}  Nh6 {[%clk 0:02:01]} 14. e6 {[%clk 0:00:53]}  Nf6 {[%clk 0:01:59]} 15. exf7+ {[%clk 0:00:49]}  Nxf7 {[%clk 0:02:00]} 16. Ne6 {[%clk 0:00:44]}  Qb7 {[%clk 0:01:55]} 17. O-O {[%clk 0:00:34]}  Nd8 {[%clk 0:01:49]} 18. f5 {[%clk 0:00:25]}  Nxe6 {[%clk 0:01:44]} 19. fxe6 {[%clk 0:00:23]}  Bg7 {[%clk 0:01:42]} 20. Bg5 {[%clk 0:00:17]}  O-O {[%clk 0:01:43]} 21. Qd2 {[%clk 0:00:17]}  Rfb8 {[%clk 0:01:41]} 22. Rab1 {[%clk 0:00:15]}  Qb4 {[%clk 0:01:38]} 23. h3 {[%clk 0:00:14]}  Rb7 {[%clk 0:01:34]} 24. Kh1 {[%clk 0:00:13]}  Ne4 {[%clk 0:01:24]} 25. Nxe4 {[%clk 0:00:13]}  Qxe4 {[%clk 0:01:25]} 26. Rbe1 {[%clk 0:00:10]}  Qd4 {[%clk 0:01:22]} 27. Qe2 {[%clk 0:00:09]}  Qxb2 {[%clk 0:01:20]} 28. Qf3 {[%clk 0:00:08]}  Rf8 {[%clk 0:01:17]} 29. Qf7+ {[%clk 0:00:05]}  Rxf7 {[%clk 0:01:16]} 30. exf7+ {[%clk 0:00:00]}  Kf8 {[%clk 0:01:16]} 0-1

[Event "January 9 Late 2024"]
[Site "https://www.chess.com"]
[Date "2024.01.10"]
[Round "9"]
[White "Mena, Martin"]
[Black "Kostiukov, Alexandr"]
[Result "0-1"]
[Board "136"]
[TimeControl "180+1"]
[WhiteFideId "10651225"]
[BlackFideId "14108100"]
[WhiteElo "2101"]
[BlackElo "2297"]
[WhiteTeam "EGY"]
[BlackTeam "UKR"]
[WhiteClock "0:00:03"]
[BlackClock "0:00:11"]

1. c4 {[%clk 0:03:00]}  g6 {[%clk 0:02:59]} 2. g3 {[%clk 0:03:00]}  Bg7 {[%clk 0:03:00]} 3. Bg2 {[%clk 0:03:00]}  c5 {[%clk 0:03:00]} 4. Nc3 {[%clk 0:03:00]}  Nf6 {[%clk 0:03:00]} 5. e4 {[%clk 0:03:01]}  O-O {[%clk 0:03:00]} 6. d3 {[%clk 0:03:01]}  Nc6 {[%clk 0:03:01]} 7. Nge2 {[%clk 0:03:00]}  d6 {[%clk 0:02:58]} 8. O-O {[%clk 0:03:00]}  a6 {[%clk 0:02:59]} 9. h3 {[%clk 0:02:56]}  Rb8 {[%clk 0:02:57]} 10. a4 {[%clk 0:02:53]}  Ne8 {[%clk 0:02:51]} 11. Be3 {[%clk 0:02:44]}  Bd7 {[%clk 0:02:51]} 12. Qd2 {[%clk 0:02:43]}  Nc7 {[%clk 0:02:50]} 13. Bh6 {[%clk 0:02:41]}  Ne6 {[%clk 0:02:50]} 14. Bxg7 {[%clk 0:02:39]}  Kxg7 {[%clk 0:02:51]} 15. f4 {[%clk 0:02:38]}  Ned4 {[%clk 0:02:51]} 16. f5 {[%clk 0:02:33]}  Nb3 {[%clk 0:02:50]} 17. Qe3 {[%clk 0:02:25]}  Nxa1 {[%clk 0:02:49]} 18. Rxa1 {[%clk 0:02:25]}  Ne5 {[%clk 0:02:25]} 19. Nd5 {[%clk 0:01:39]}  Bc6 {[%clk 0:02:17]} 20. Nef4 {[%clk 0:01:31]}  Nd7 {[%clk 0:01:34]} 21. Rf1 {[%clk 0:00:56]}  Nb6 {[%clk 0:01:18]} 22. fxg6 {[%clk 0:00:17]}  hxg6 {[%clk 0:01:13]} 23. h4 {[%clk 0:00:09]}  e6 {[%clk 0:00:20]} 24. Nxb6 {[%clk 0:00:04]}  Qxb6 {[%clk 0:00:21]} 25. h5 {[%clk 0:00:03]}  Qxb2 {[%clk 0:00:19]} 26. hxg6 {[%clk 0:00:03]}  fxg6 {[%clk 0:00:20]} 27. Nxe6+ {[%clk 0:00:03]}  Kh7 {[%clk 0:00:18]} 28. Nxf8+ {[%clk 0:00:02]}  Kg7 {[%clk 0:00:18]} 29. Ne6+ {[%clk 0:00:02]}  Kh7 {[%clk 0:00:19]} 30. Qg5 {[%clk 0:00:02]}  Qe5 {[%clk 0:00:14]} 31. Qe7+ {[%clk 0:00:02]}  Kh6 {[%clk 0:00:15]} 32. Qh4+ {[%clk 0:00:02]}  Qh5 {[%clk 0:00:13]} 33. Rf7 {[%clk 0:00:02]}  Qxh4 {[%clk 0:00:13]} 34. gxh4 {[%clk 0:00:03]}  b5 {[%clk 0:00:12]} 35. Ng5 {[%clk 0:00:03]}  Kh5 {[%clk 0:00:11]} 36. Rh7+ {[%clk 0:00:03]}  Kg4 {[%clk 0:00:12]} 37. Bh3+ {[%clk 0:00:04]}  Kg3 {[%clk 0:00:12]} 38. e5 {[%clk 0:00:04]}  bxa4 {[%clk 0:00:11]} 39. Ne4+ {[%clk 0:00:04]}  Kxh3 {[%clk 0:00:11]} 40. Ng5+ {[%clk 0:00:03]}  Kg3 {[%clk 0:00:11]} 41. Ra7 {[%clk 0:00:03]}  Rb1# {[%clk 0:00:11]} 0-1